bitfinex/quotes_ETHUSD_20260203
["timestamp","ask_amount","ask_price","bid_price","bid_amount"]
[1770150914117,0.00654107,2299.1,2298.3,0.913]
[1770150914419,0.00654107,2299.5,2298.3,0.913]
[1770150914420,1.09327273,2300.5,2298.3,2.29835804]
[1770150914726,0.00654107,2298.7,2298.3,0.913]
[1770150914874,0.00654107,2298.7,2297.2,1.29444009]
[1770150914875,0.00654107,2297.9,2297.2,1.29444009]
[1770150915217,0.00654107,2297.9,2296.2,13.0]
[1770150915218,0.00654107,2298.3,2296.2,13.0]
[1770150915219,0.00654107,2297.6,2296.9,0.913]
[1770150915423,0.00654107,2300.0,2297.1,12.99672946]
[1770150915710,0.00654107,2300.1,2297.6,0.00654107]
[1770150915919,0.00654107,2300.7,2297.6,0.00654107]
[1770150915920,0.00654107,2301.8,2299.6,0.00654107]
[1770150916199,0.00654107,2301.8,2299.8,0.1024]
[1770150916200,0.00654107,2301.7,2299.8,0.1024]
[1770150916365,7.5834677,2301.9,2299.6,1.81632988]
[1770150916569,0.00654107,2300.2,2299.2,0.913]
[1770150916867,0.00654107,2301.2,2299.2,0.913]
[1770150917118,0.00654107,2301.2,2299.3,1.08727724]
[1770150917278,0.00654107,2300.8,2299.3,1.08728079]
[1770150917601,0.00654107,2301.0,2299.2,0.913]
[1770150917777,0.00654107,2301.0,2299.3,1.08727223]
[1770150917982,0.00654107,2301.2,2299.3,1.08727223]
[1770150918177,0.00654107,2301.2,2299.4,0.6349445]
[1770150918178,0.00654107,2300.3,2299.4,0.6349445]
[1770150918379,0.00654107,2300.3,2299.2,0.913]
[1770150918380,0.00654107,2299.8,2299.2,0.913]
[1770150918918,0.00654107,2299.8,2298.0,0.913]
[1770150918919,0.00654107,2299.3,2298.0,0.913]
[1770150919071,0.00654107,2299.7,2298.0,0.913]
[1770150919072,0.00654107,2301.6,2299.2,0.00654107]
[1770150919271,0.00654107,2301.2,2299.3,0.913]
[1770150919466,0.00654107,2301.1,2299.3,0.913]
[1770150919701,0.49474276,2302.1,2299.4,12.99345893]
[1770150919904,0.003,2302.5,2301.6,0.00654107]
[1770150920107,0.0011,2303.6,2301.6,0.00654107]
[1770150920108,0.0011,2303.6,2301.8,0.00654107]
[1770150920291,0.0011,2303.6,2302.4,0.00654107]
[1770150920492,0.0011,2303.6,2302.0,0.00654107]
[1770150920493,0.00654107,2303.3,2300.8,0.50267334]
[1770150920688,0.0011,2303.6,2301.8,1.39049589]
[1770150920689,0.00764107,2303.4,2301.8,1.39049589]
[1770150921225,0.0011,2303.4,2301.9,13.2320703]
[1770150921682,0.00654107,2302.9,2301.8,1.39049589]
[1770150922024,0.00654107,2303.2,2301.7,0.913]
[1770150922172,0.00764107,2303.4,2301.8,0.2335703]
[1770150922173,0.0011,2303.4,2301.8,0.2335703]
[1770150922499,0.00654107,2303.2,2301.8,13.22552923]
[1770150922815,0.00654107,2303.0,2301.9,1.52246622]
[1770150923105,0.00654107,2303.0,2301.7,0.913]
[1770150923106,0.00654107,2302.2,2301.7,0.913]
[1770150923305,0.00654107,2302.6,2301.7,0.913]
[1770150923306,1.09299934,2303.4,2301.7,0.4922091]
[1770150923506,0.00654107,2302.3,2301.7,0.47612696]
[1770150923706,0.00654107,2302.2,2299.8,13.00654107]
[1770150923876,0.00654107,2301.7,2299.8,13.0]
[1770150924078,0.00654107,2301.7,2299.9,1.30065411]
[1770150924079,0.00654107,2300.9,2299.9,1.30065411]
[1770150924276,0.00654107,2301.7,2299.7,0.912]
[1770150924277,7.5834677,2302.7,2300.2,0.00654107]
[1770150924475,0.00654107,2303.0,2300.8,0.00654107]
[1770150924689,0.00654107,2303.1,2301.2,0.24011137]
[1770150924920,0.00764107,2303.4,2301.2,0.24011137]
[1770150924921,0.0011,2303.4,2301.7,0.00654107]
[1770150925214,0.0011,2303.4,2301.5,13.00654107]
[1770150925215,0.00654107,2302.9,2301.5,13.0]
[1770150925374,0.00654107,2302.9,2299.6,13.0]
[1770150925375,0.00654107,2301.6,2299.6,13.0]
[1770150925569,0.00654107,2301.6,2299.6,12.93637809]
[1770150925570,0.00654107,2301.2,2299.6,12.93637809]
[1770150925804,0.00654107,2301.1,2299.6,12.93637809]
[1770150926005,1.09264759,2301.8,2299.6,12.93637809]
[1770150926206,0.10894107,2302.1,2299.9,0.00654107]
[1770150926207,0.00654107,2302.1,2299.9,0.00654107]
[1770150926395,0.00654107,2302.1,2299.7,14.26182685]
[1770150926396,0.00654107,2301.4,2299.7,14.26182685]
[1770150926580,0.00654107,2301.3,2299.7,14.26182685]
[1770150926774,0.00654107,2301.3,2299.4,0.912]
[1770150926775,0.00654107,2301.0,2299.4,0.912]
[1770150926986,0.00654107,2301.4,2299.4,0.912]
[1770150926987,0.00654107,2303.0,2300.9,0.001]
[1770150927336,0.00654107,2301.8,2301.0,0.912]
[1770150927605,0.00654107,2301.4,2301.0,0.84837809]
[1770150927802,0.00654107,2301.7,2300.9,0.001]
[1770150928234,0.00654107,2301.7,2300.2,0.912]
[1770150928235,0.00654107,2301.0,2300.2,0.912]
[1770150928374,0.00654107,2300.8,2300.2,0.912]
[1770150928586,0.00654107,2300.8,2299.3,1.96]
[1770150928587,0.00654107,2300.1,2299.3,1.96]
[1770150928786,0.00654107,2301.0,2299.3,1.96]
[1770150928986,0.00654107,2300.6,2299.3,1.96]
[1770150929291,0.00654107,2300.6,2299.0,0.912]
[1770150929292,0.00654107,2300.1,2299.0,0.912]
[1770150929491,0.00654107,2300.0,2299.0,0.912]
[1770150929692,0.00654107,2300.0,2297.8,1.09453828]
[1770150929693,0.00654107,2299.6,2297.8,13.0]
[1770150929906,0.00654107,2299.1,2297.8,13.0]
[1770150930117,1.08700432,2299.9,2297.8,13.0]
[1770150930435,0.00654107,2300.1,2298.0,13.00654107]
[1770150930650,1.08680074,2300.4,2298.2,13.00654107]
[1770150930935,0.00654107,2300.0,2298.2,14.30196232]
[1770150931135,0.00654107,2299.9,2298.2,14.30196232]
[1770150931340,0.00654107,2300.8,2298.2,14.30196232]
[1770150931522,0.00654107,2301.8,2298.2,14.30196232]
[1770150931523,0.00654107,2301.8,2300.0,0.01308214]
[1770150931723,0.0011,2302.5,2299.5,12.99672946]
[1770150931724,4.34369499,2302.2,2300.1,0.912]
[1770150931933,1.09260041,2301.9,2300.1,0.912]
[1770150932118,8.66298597,2301.9,2300.1,0.912]
[1770150932340,0.00654107,2301.3,2300.1,0.912]
[1770150932521,0.00654107,2301.2,2300.1,0.912]
[1770150932720,0.00654107,2301.5,2300.1,0.90545893]
[1770150933243,0.00654107,2300.1,2298.6,13.0]
[1770150933405,0.00654107,2300.3,2298.7,1.40876381]
[1770150933601,7.57692663,2301.3,2298.7,14.40876381]
[1770150933807,7.57692663,2301.3,2298.9,14.08746999]
[1770150933808,4.35210825,2301.2,2298.9,14.08746999]
[1770150934038,0.00654107,2301.2,2299.3,0.2335703]
[1770150934205,0.00654107,2301.2,2299.3,1.32401114]
[1770150934206,0.00654107,2300.7,2299.3,1.32401114]
[1770150934412,0.00654107,2300.3,2299.2,13.0]
[1770150934935,0.00654107,2300.2,2299.2,13.0]
[1770150935136,0.00654107,2300.4,2299.2,13.0]
[1770150935448,4.3444261,2302.0,2299.2,13.0]
[1770150935449,0.0011,2302.3,2301.2,0.00654107]
[1770150935606,0.0011,2302.3,2301.5,13.00654107]
[1770150935809,0.0011,2302.5,2301.5,13.0]
[1770150936423,0.0011,2302.5,2301.6,0.2335703]
[1770150936644,0.0011,2302.5,2301.6,13.2330203]
[1770150936965,0.00764107,2303.4,2301.3,0.912]
[1770150936966,0.0011,2303.4,2301.8,13.2330203]
[1770150937236,0.00654107,2303.1,2301.8,13.2330203]
[1770150937442,0.0011,2303.4,2301.8,13.2330203]
[1770150938144,0.00654107,2302.8,2301.7,1.43192235]
[1770150938342,0.00654107,2302.3,2301.2,13.91145]
[1770150939024,0.00654107,2302.4,2301.2,13.91145]
[1770150939555,7.57692663,2302.7,2300.5,0.912]
[1770150939757,0.00654107,2302.0,2300.5,0.912]
[1770150939965,1.09254525,2302.1,2300.5,0.912]
[1770150940250,0.00654107,2301.7,2300.5,0.912]
[1770150940408,0.00654107,2301.8,2300.5,0.912]
[1770150940610,0.00654107,2302.6,2300.6,0.00654107]
[1770150940809,1.18801212,2302.9,2301.1,0.00654107]
[1770150941112,11.92610424,2303.4,2301.7,0.00654107]
[1770150941113,0.0011,2302.3,2301.7,0.00654107]
[1770150941339,0.0011,2302.3,2301.8,0.912]
[1770150941909,0.0011,2302.3,2301.0,0.00654107]
[1770150941910,0.0011,2302.3,2300.9,13.91145]
[1770150942128,0.0011,2302.3,2301.0,1.299945]
[1770150943943,0.0011,2302.3,2300.0,13.0]
[1770150943944,0.00654107,2301.6,2300.0,13.0]
[1770150944111,0.00654107,2301.7,2300.0,12.60539687]
[1770150944311,1.08612881,2301.8,2300.1,0.84837599]
[1770150944536,0.00654107,2301.6,2300.0,12.60539687]
[1770150944741,0.00654107,2301.7,2300.0,12.60539687]
[1770150945237,1.09266988,2301.8,2300.0,12.60539687]
[1770150945238,1.08613329,2301.8,2300.0,12.60539687]
[1770150945466,0.00654107,2301.9,2300.1,0.84384421]
[1770150945752,0.00764107,2302.5,2300.0,0.912]
[1770150945753,0.00654107,2304.3,2301.8,0.00654107]
[1770150945912,0.00654107,2303.5,2301.9,0.912]
[1770150946125,1.09180111,2303.6,2301.9,0.912]
[1770150946336,0.00654107,2303.7,2301.9,0.912]
[1770150946521,1.09180572,2303.6,2301.9,0.912]
[1770150947026,0.00654107,2303.2,2301.9,0.912]
[1770150947221,0.00654107,2302.8,2301.9,0.912]
[1770150947713,0.00654107,2302.9,2301.9,0.912]
[1770150947922,0.00654107,2302.6,2301.9,0.912]
[1770150948123,0.00654107,2302.2,2301.9,0.86853266]
[1770150948355,0.00654107,2302.0,2301.2,0.912]
[1770150948860,0.00654107,2301.9,2301.2,0.912]
[1770150949015,0.00654107,2302.1,2301.2,0.912]
[1770150949214,0.00654107,2302.2,2301.2,0.912]
[1770150949446,0.00654107,2301.9,2301.2,0.912]
[1770150949752,0.00654107,2302.0,2301.2,0.912]
[1770150949950,0.00654107,2302.2,2301.2,0.912]
[1770150950127,0.00654107,2302.0,2301.2,0.912]
[1770150950326,0.003,2301.5,2301.2,0.912]
[1770150950567,0.003,2301.5,2300.1,1.3802072]
[1770150950568,0.00654107,2301.0,2300.1,1.3802072]
[1770150950857,0.00654107,2300.7,2299.7,13.69241476]
[1770150951038,0.00654107,2300.8,2299.7,13.69241476]
[1770150951269,0.00654107,2301.0,2299.8,0.84626978]
[1770150951444,0.00654107,2301.1,2299.7,13.69241476]
[1770150951647,0.00654107,2301.1,2299.8,0.84705454]
[1770150951888,0.00654107,2301.0,2299.9,1.45394693]
[1770150952088,1.09302526,2301.0,2299.9,1.45394693]
[1770150952384,0.00654107,2301.1,2299.9,1.45394693]
[1770150952591,0.00954107,2301.5,2300.1,12.78041476]
[1770150952792,0.00954107,2301.5,2300.2,0.84764429]
[1770150952991,0.00954107,2301.5,2300.3,2.21045019]
[1770150953148,0.00954107,2301.5,2300.4,0.84764429]
[1770150953346,0.00954107,2301.5,2300.3,1.3628059]
[1770150953561,0.003,2301.5,2300.4,0.84737961]
[1770150953775,0.00654107,2301.1,2300.3,1.3628059]
[1770150953974,1.09303708,2301.0,2299.9,1.45394693]
[1770150954298,0.003,2301.5,2299.6,14.77952518]
[1770150954505,0.003,2301.5,2299.8,13.01398506]
[1770150954666,0.003,2301.5,2300.0,14.10090957]
[1770150954869,0.003,2301.5,2300.3,1.3802072]
[1770150955076,0.003,2301.5,2300.5,0.2345703]
[1770150955401,0.003,2301.5,2300.5,1.76687625]
[1770150955763,0.00654107,2301.4,2300.5,0.001]
[1770150955967,0.00654107,2301.1,2300.5,0.001]
[1770150956281,1.09579428,2301.5,2300.5,0.001]
[1770150956484,0.003,2301.5,2300.5,0.001]
[1770150956664,0.00654107,2301.4,2300.5,0.001]
[1770150957881,0.00954107,2301.5,2300.5,0.001]
[1770150958078,0.00654107,2301.3,2300.5,0.001]
[1770150958303,0.00654107,2301.3,2299.7,1.3802072]
[1770150958304,0.00654107,2301.1,2299.7,1.3802072]
[1770150958467,0.00654107,2301.1,2299.4,12.78191476]
[1770150958468,0.00654107,2300.2,2299.4,12.78191476]
[1770150958665,0.00654107,2300.5,2299.4,15.27734546]
[1770150958888,0.00954107,2301.5,2299.4,15.27734546]
[1770150958889,0.003,2301.5,2300.5,0.02616428]
[1770150959205,0.003,2301.5,2300.6,0.84708988]
[1770150959372,0.003,2301.5,2300.5,13.67656209]
[1770150959698,0.00654107,2301.2,2299.8,14.14476929]
[1770150959885,0.003,2301.5,2300.0,12.76456209]
[1770150960394,0.003,2301.5,2300.6,14.14476929]
[1770150960596,0.003,2301.5,2300.7,0.912]
[1770150960798,0.003,2301.5,2299.4,1.40919148]
[1770150960799,0.00654107,2300.4,2299.4,1.40919148]
[1770150961000,0.00654107,2299.9,2299.1,0.001]
[1770150961169,0.00654107,2300.0,2299.1,0.001]
[1770150961170,0.47131884,2301.4,2299.2,13.0]
[1770150961377,0.003,2301.5,2300.4,13.0]
[1770150961719,0.00654107,2303.7,2300.4,13.0]
[1770150961720,0.00654107,2303.7,2301.6,12.9985]
[1770150961898,0.00654107,2302.6,2301.6,12.9985]
[1770150962216,0.00654107,2303.2,2300.7,0.2335703]
[1770150962217,0.1024,2303.3,2301.5,7.57972089]
[1770150962429,0.90916854,2304.8,2303.1,0.00654107]
[1770150962707,0.90916854,2304.8,2303.0,0.2335703]
[1770150962708,0.22695685,2304.3,2303.0,0.2335703]
[1770150963020,0.22695685,2304.3,2302.6,0.00654107]
[1770150963021,0.00654107,2304.5,2302.3,13.2315203]
[1770150963170,0.00654107,2304.1,2302.4,14.32110203]
[1770150963370,0.00654107,2304.1,2302.4,12.99795]
[1770150963691,0.00654107,2303.6,2302.0,0.912]
[1770150963869,0.00654107,2303.5,2302.0,0.912]
[1770150964271,0.10894107,2303.5,2301.6,13.75592209]
[1770150964605,0.00654107,2303.1,2301.6,13.75592209]
[1770150964800,0.00654107,2303.1,2301.7,14.37354221]
[1770150965106,0.00654107,2303.5,2301.7,14.37354221]
[1770150965107,0.22706929,2305.1,2303.3,12.99795]
[1770150965323,0.22693531,2305.3,2303.4,0.00654107]
[1770150965545,1.08444809,2305.4,2303.4,0.00654107]
[1770150965546,0.10553554,2305.4,2304.3,12.99795]
[1770150965675,0.00654107,2307.0,2304.0,0.24011137]
[1770150965676,0.68094786,2307.3,2306.1,12.8987699]
[1770150965870,0.31020056,2307.7,2306.1,12.83741972]
[1770150965871,0.226679,2307.4,2306.1,12.83741972]
[1770150966274,0.226679,2307.4,2305.5,0.00654107]
[1770150966275,7.57972089,2307.0,2304.3,2.74752574]
[1770150966478,12.78200047,2307.3,2304.5,0.40473207]
[1770150966479,0.00654107,2305.8,2304.5,0.40473207]
[1770150966813,0.00654107,2305.3,2304.0,12.35505249]
[1770150967014,0.00654107,2305.7,2304.0,12.35505249]
[1770150967015,0.00654107,2306.6,2304.5,0.2335703]
[1770150967197,7.57972089,2306.9,2304.1,0.911]
[1770150967198,0.00654107,2305.3,2304.1,0.911]
[1770150967507,0.22691804,2306.8,2304.7,0.2335703]
[1770150967813,0.00654107,2306.2,2304.7,12.58862279]
[1770150967971,0.00654107,2306.4,2304.9,0.2335703]
[1770150968171,1.08314197,2308.1,2304.9,0.2335703]
[1770150968172,0.00654107,2306.3,2304.9,0.2335703]
[1770150968401,0.00654107,2305.8,2304.8,1.25886228]
[1770150968721,0.00654107,2305.5,2304.2,0.911]
[1770150968907,0.00654107,2305.6,2304.3,1.08490028]
[1770150969113,0.00654107,2306.7,2304.5,1.0848139]
[1770150969307,0.00654107,2306.7,2304.4,0.2335703]
[1770150969308,0.00654107,2306.1,2304.4,0.2335703]
[1770150969628,0.00654107,2305.5,2304.4,1.34996228]
[1770150969780,0.00654107,2305.7,2303.4,12.35505249]
[1770150970111,0.00654107,2305.2,2303.4,13.44039852]
[1770150970318,0.00654107,2304.4,2303.3,0.911]
[1770150970478,0.00654107,2304.3,2303.3,0.911]
[1770150970676,0.00764107,2304.7,2303.3,0.911]
[1770150970677,0.00654107,2305.8,2303.4,13.44039341]
[1770150970915,0.00654107,2306.6,2304.2,12.36159356]
[1770150971078,0.00654107,2306.6,2304.3,12.59516386]
[1770150971079,0.00654107,2306.4,2304.3,12.59516386]
[1770150971404,0.00654107,2306.1,2304.4,0.911]
[1770150971625,0.00654107,2305.7,2304.4,0.911]
[1770150971777,0.00654107,2305.9,2303.5,13.79019183]
[1770150971778,0.00654107,2305.2,2303.5,13.79019183]
[1770150971980,0.00654107,2305.0,2303.6,1.37901918]
[1770150972179,0.00654107,2306.5,2303.8,12.35505249]
[1770150972375,0.00654107,2306.5,2304.5,12.58862279]
[1770150972376,0.00654107,2306.4,2304.5,12.58862279]
[1770150972581,0.00654107,2306.3,2304.7,0.2335703]
[1770150972814,0.00654107,2306.4,2304.7,0.2335703]
[1770150973123,0.00654107,2306.5,2304.7,13.93858507]
[1770150973444,0.00654107,2305.6,2304.7,1.34996228]
[1770150973595,0.00654107,2304.9,2303.9,12.35505249]
[1770150973989,0.00654107,2305.1,2303.9,12.35505249]
[1770150974622,0.003,2304.1,2303.9,12.35505249]
[1770150974823,0.00654107,2305.7,2304.0,0.2335703]
[1770150975414,0.00654107,2306.1,2304.0,12.58862279]
[1770150975714,0.00654107,2306.1,2304.2,0.2335703]
[1770150975715,0.00654107,2305.9,2304.2,0.2335703]
[1770150976011,0.00654107,2306.1,2304.2,12.58862279]
[1770150976183,0.00654107,2305.4,2304.2,12.58862279]
[1770150976386,0.00654107,2305.7,2304.2,12.35505249]
[1770150976685,0.00654107,2305.4,2304.2,12.35505249]
[1770150976888,0.00654107,2305.4,2304.3,1.37230798]
[1770150977095,0.00654107,2306.4,2304.4,0.2335703]
[1770150977312,0.00654107,2306.8,2304.7,0.2335703]
[1770150977491,0.00654107,2306.9,2304.9,0.24011137]
[1770150977690,0.00654107,2307.0,2304.9,0.24011137]
[1770150977691,0.00654107,2307.1,2305.1,0.2335703]
[1770150977895,0.00654107,2306.7,2305.1,1.49374079]
[1770150978212,0.00654107,2306.0,2304.8,0.91]
[1770150978413,0.00654107,2305.6,2304.8,0.91]
[1770150978606,0.00654107,2306.3,2304.8,0.91]
[1770150978808,0.00654107,2306.4,2304.9,0.2335703]
[1770150978985,0.00654107,2306.4,2304.9,0.89028456]
[1770150979190,0.00654107,2306.4,2304.8,0.91]
[1770150979191,0.00654107,2305.4,2304.8,0.91]
[1770150979404,0.00654107,2305.5,2304.8,0.91]
[1770150979812,0.00654107,2305.2,2304.8,0.78200645]
[1770150980017,0.00654107,2305.2,2303.4,12.35505249]
[1770150980018,0.00654107,2304.5,2303.4,12.35505249]
[1770150980215,0.00654107,2304.5,2302.3,1.17391097]
[1770150980216,0.00654107,2304.0,2303.5,1.23550525]
[1770150980517,0.00654107,2304.0,2302.3,1.1673699]
[1770150980518,0.00654107,2303.7,2302.3,1.1673699]
[1770150980688,0.00654107,2304.1,2302.4,0.91]
[1770150980890,0.00654107,2303.4,2302.4,0.91]
[1770150981085,0.00654107,2303.8,2301.8,12.00382175]
[1770150981086,1.08503842,2304.1,2301.8,1.08606482]
[1770150981290,1.09157949,2304.1,2302.0,0.00654107]
[1770150981487,1.09157949,2304.1,2301.7,12.00382175]
[1770150981488,0.00654107,2303.6,2301.7,12.00382175]
[1770150981699,0.00654107,2304.0,2301.7,12.00382175]
[1770150981700,0.00654107,2306.2,2303.6,0.01308214]
[1770150981898,0.00654107,2306.5,2304.3,0.00654107]
[1770150981899,1.08389334,2306.5,2304.3,0.00654107]
[1770150982090,0.0011,2305.2,2303.8,0.2335703]
[1770150982307,0.0011,2305.2,2303.7,0.91]
[1770150982308,0.00654107,2305.1,2303.7,0.91]
[1770150982515,0.00654107,2304.6,2303.7,0.91]
[1770150982717,0.00654107,2304.8,2302.8,12.00382175]
[1770150983044,0.00654107,2304.8,2302.9,1.39608218]
[1770150983045,0.00654107,2304.6,2302.9,1.39608218]
[1770150983256,0.00654107,2304.1,2302.9,1.39608218]
[1770150983528,0.00654107,2303.4,2302.6,0.91]
[1770150983705,0.00654107,2303.2,2302.6,0.91]
[1770150984107,0.00654107,2302.9,2301.9,0.001]
[1770150984311,0.00654107,2302.7,2301.9,0.001]
[1770150984823,0.00654107,2302.3,2301.9,0.001]
[1770150985025,0.00654107,2302.0,2301.9,0.001]
[1770150985225,0.00654107,2302.0,2300.7,0.91]
[1770150985226,0.00654107,2301.0,2300.7,0.91]
[1770150985408,0.00654107,2301.0,2299.1,0.001]
[1770150985409,0.00654107,2300.9,2299.8,5.25815885]
[1770150985606,0.00654107,2300.6,2299.8,1.99702463]
[1770150985926,0.00654107,2300.8,2299.8,1.99704381]
[1770150986130,0.00654107,2300.4,2299.8,0.91]
[1770150986302,0.00654107,2300.5,2299.8,0.91]
[1770150986502,0.00654107,2300.9,2299.8,0.91]
[1770150986503,1.08601216,2302.0,2299.8,0.91]
[1770150986703,0.00654107,2300.6,2299.8,0.91]
[1770150987030,0.00654107,2300.5,2299.8,0.91]
[1770150987200,0.00654107,2300.3,2299.8,0.91]
[1770150987401,0.00654107,2300.7,2299.1,0.001]
[1770150987402,0.00654107,2302.7,2300.0,12.00382175]
[1770150987611,0.00654107,2302.7,2299.1,4.35031184]
[1770150987612,0.00654107,2300.4,2299.2,12.00382175]
[1770150987818,0.00654107,2300.5,2299.2,12.91482175]
[1770150988520,0.00654107,2300.3,2299.2,12.91482175]
[1770150988724,0.00654107,2300.4,2299.2,12.91482175]
[1770150988930,0.00654107,2299.8,2299.2,0.911]
[1770150989113,0.00654107,2300.0,2299.2,0.911]
[1770150989313,0.00654107,2300.9,2299.2,0.911]
[1770150989314,0.00654107,2300.7,2299.2,0.911]
[1770150989628,1.09288357,2301.4,2299.2,0.911]
[1770150989629,0.00654107,2302.0,2299.7,12.01036282]
[1770150989831,0.00654107,2301.9,2299.9,12.00382175]
[1770150990029,0.00654107,2301.5,2299.3,0.24011137]
[1770150990338,0.00654107,2301.6,2299.6,0.00654107]
[1770150990655,1.09276394,2301.6,2299.7,0.00654107]
[1770150990814,0.54439325,2301.5,2299.6,0.00654107]
[1770150991012,0.55093432,2301.5,2299.5,0.00654107]
[1770150991275,0.54439325,2301.5,2299.6,0.00654107]
[1770150991430,0.54439325,2301.5,2299.8,0.00654107]
[1770150991633,0.30144683,2301.7,2300.0,0.00654107]
[1770150991830,0.30144683,2301.7,2299.8,0.00654107]
[1770150992144,0.30144683,2301.7,2300.0,0.00654107]
[1770150992345,0.00654107,2301.6,2299.8,0.00654107]
[1770150992642,0.00654107,2301.6,2299.4,0.24011137]
[1770150992842,0.30144683,2301.7,2299.9,0.00654107]
[1770150993013,0.30144683,2301.7,2300.1,0.00654107]
[1770150993217,0.30144683,2301.7,2300.0,0.00654107]
[1770150993409,0.30144683,2301.7,2299.9,0.00654107]
[1770150993410,0.00654107,2301.5,2299.5,1.09370687]
[1770150993611,1.38760561,2301.7,2299.8,0.00654107]
[1770150993813,0.00654107,2301.3,2299.4,13.32062328]
[1770150994023,0.00654107,2301.0,2299.2,0.911]
[1770150994237,0.00654107,2300.4,2299.2,0.911]
[1770150994972,0.00654107,2300.4,2297.8,0.00654107]
[1770150994973,0.45677899,2300.8,2296.9,12.01036282]
[1770150995167,1.10951522,2301.7,2299.9,0.00654107]
[1770150995168,0.30144683,2301.7,2299.9,0.00654107]
[1770150995467,0.00654107,2302.1,2300.1,0.2335703]
[1770150995634,0.00654107,2301.5,2300.1,0.2335703]
[1770150995838,0.00654107,2301.4,2300.0,0.911]
[1770150996076,0.00654107,2301.8,2300.0,0.911]
[1770150996077,4.34889201,2303.0,2300.1,12.24393312]
[1770150996305,0.00654107,2301.8,2300.2,1.31549331]
[1770150996447,0.00654107,2301.1,2300.0,0.911]
[1770150996649,0.00654107,2300.7,2300.0,0.911]
[1770150996872,0.00654107,2300.6,2300.0,0.911]
[1770150997177,0.00654107,2300.8,2300.0,0.911]
[1770150997547,0.00654107,2300.7,2300.0,0.25903811]
[1770150997752,1.09269478,2301.7,2300.0,0.25903811]
[1770150998066,0.00654107,2301.4,2300.0,0.25903811]
[1770150998246,0.00654107,2301.3,2300.0,0.25903811]
[1770150998573,0.00654107,2301.4,2300.0,0.25903811]
[1770150998741,0.00654107,2302.0,2300.1,0.2335703]
[1770150999073,0.00654107,2301.9,2300.1,2.02734508]
[1770150999275,0.30272844,2302.1,2300.1,14.03116683]
[1770150999567,0.30926951,2302.1,2300.1,14.03116683]
[1770150999767,0.00654107,2302.0,2300.1,14.03116683]
[1770151000077,0.00654107,2302.0,2299.7,4.35436715]
[1770151000078,0.00654107,2301.1,2300.2,0.911]
[1770151000240,0.00654107,2301.2,2300.2,0.911]
[1770151000441,0.00654107,2301.2,2299.3,12.00382175]
[1770151000442,0.00654107,2300.7,2299.3,12.00382175]
[1770151000640,0.00654107,2300.0,2298.9,0.001]
[1770151000841,0.00654107,2300.2,2298.9,0.912]
[1770151001043,0.00654107,2299.4,2298.6,0.001]
[1770151001240,0.00654107,2299.4,2298.2,0.911]
[1770151001241,0.00654107,2299.2,2298.2,0.911]
[1770151001465,0.00654107,2299.2,2297.7,0.001]
[1770151001466,0.00654107,2298.9,2297.7,0.001]
[1770151001768,0.00654107,2298.9,2297.9,0.912]
[1770151002368,0.00654107,2299.3,2297.9,0.912]
[1770151002369,10.04091124,2304.5,2297.9,0.912]
[1770151002585,0.00654107,2298.6,2297.9,0.912]
[1770151002794,0.00654107,2298.2,2296.9,12.00382175]
[1770151003101,0.00654107,2298.1,2297.0,0.912]
[1770151003253,0.00654107,2298.3,2297.0,0.912]
[1770151003454,0.00654107,2298.5,2297.0,0.912]
[1770151003860,0.00654107,2298.4,2297.0,0.912]
[1770151004260,0.00654107,2298.2,2297.0,0.912]
[1770151004467,0.00654107,2298.1,2297.0,0.912]
[1770151004674,0.00654107,2298.2,2297.0,0.912]
[1770151004877,0.00654107,2298.2,2295.9,1.0888565]
[1770151004878,0.00654107,2297.3,2295.9,1.0888565]
[1770151005061,0.00654107,2297.3,2295.8,12.00382175]
[1770151005062,0.00654107,2297.0,2296.0,0.912]
[1770151005389,0.00654107,2298.1,2296.0,12.91582175]
[1770151005594,0.00654107,2297.6,2296.0,12.91582175]
[1770151006093,0.00654107,2298.1,2296.6,4.35423679]
[1770151006266,0.00654107,2298.1,2296.0,14.20740392]
[1770151006267,0.00654107,2297.9,2296.7,1.08849444]
[1770151006586,0.00654107,2297.9,2296.4,1.08866051]
[1770151007081,1.09421077,2298.5,2296.4,0.00654107]
[1770151007262,0.00654107,2297.7,2296.3,12.00382175]
[1770151007456,0.00654107,2297.7,2296.4,0.912]
[1770151007658,0.00654107,2297.6,2296.4,0.912]
[1770151007857,0.00654107,2297.8,2296.4,0.912]
[1770151008052,0.00654107,2298.0,2296.4,0.912]
[1770151008257,1.0942231,2298.5,2296.4,0.912]
[1770151008480,0.00654107,2298.0,2296.4,0.912]
[1770151009057,0.00654107,2298.0,2296.9,0.001]
[1770151009261,0.00654107,2298.3,2296.9,0.001]
[1770151010487,0.00654107,2298.1,2296.9,0.001]
[1770151010686,0.00654107,2298.3,2296.9,0.001]
[1770151010873,0.00654107,2297.8,2296.9,0.001]
[1770151011072,0.54580091,2298.3,2296.9,0.001]
[1770151011295,0.00654107,2299.3,2297.3,0.24011137]
[1770151011483,0.22758988,2299.5,2298.2,12.5081221]
[1770151011658,0.68956176,2300.6,2298.2,12.5081221]
[1770151011659,0.68302069,2300.6,2298.8,0.00654107]
[1770151011859,0.00654107,2300.8,2298.8,0.00654107]
[1770151012088,0.00654107,2300.7,2298.8,0.00654107]
[1770151012281,0.54523746,2300.7,2299.0,12.73515133]
[1770151012467,0.003,2301.0,2299.2,12.73515133]
[1770151012811,0.003,2301.0,2299.5,12.7416924]
[1770151012975,0.003,2301.0,2299.8,0.2335703]
[1770151013286,0.003,2301.0,2299.9,12.5081221]
[1770151013469,0.003,2301.0,2299.9,12.50158103]
[1770151013869,0.003,2301.0,2300.0,0.912]
[1770151014190,0.00654107,2300.1,2299.1,12.50158103]
[1770151014388,0.87804596,2301.0,2299.7,13.41358103]
[1770151014389,0.003,2301.0,2299.7,13.41358103]
[1770151014891,0.00654107,2300.7,2299.7,13.41358103]
[1770151015259,0.00654107,2300.7,2299.7,0.912]
[1770151015494,0.00654107,2300.8,2299.7,0.912]
[1770151015797,0.003,2301.0,2299.8,12.78913257]
[1770151016086,0.003,2301.0,2300.0,12.55556227]
[1770151016303,0.003,2301.0,2299.2,12.55556227]
[1770151016304,0.00654107,2300.5,2299.2,12.55556227]
[1770151016458,0.00654107,2300.8,2299.9,0.912]
[1770151016662,0.00954107,2301.0,2299.9,0.912]
[1770151016663,0.003,2301.0,2299.9,0.912]